fUST/lending_fUST_20250207
["ID","MTS","AMOUNT","RATE_DAILY","PERIOD"]
[352061296,1738915852801,-500.0,0.00014931,2]
[352061297,1738915852810,-500.0,0.00014931,2]
[352061298,1738915852820,-500.0,0.00014931,2]
[352061299,1738915852829,-500.0,0.00014931,2]
[352061300,1738915852839,-275.23340753,0.00014931,2]
[352061301,1738915852849,-500.0,0.00014931,2]
[352061302,1738915852859,-500.0,0.00014931,2]
[352061303,1738915852868,-500.0,0.00014931,2]
[352061304,1738915852878,-767.32,0.00014931,2]
[352061305,1738915852887,-500.0,0.00014931,2]
[352061306,1738915852898,-500.0,0.00014931,2]
[352061307,1738915852908,-819.13,0.00014931,2]
[352061308,1738915852917,-1061.93,0.00014931,2]
[352061309,1738915852927,-1044.34773428,0.00014934,2]
[352061310,1738915852938,-151.89957756,0.00014973,2]
[352061311,1738915852948,-163.17118217,0.00014973,2]
[352061312,1738915852958,-330.39603423,0.00014973,2]
[352061313,1738915852970,-500.0,0.00014973,2]
[352061314,1738915852980,-500.0,0.00014973,2]
[352061315,1738915852990,-500.0,0.00014973,2]
[352061316,1738915853001,-430.74356405,0.00014973,2]
[352061317,1738915853015,-500.0,0.00014973,2]
[352061318,1738915853026,-261.46153384,0.00014973,2]
[352061319,1738915853036,-1282.13767487,0.00014999,2]
[352061320,1738915853050,-229453.96507929,0.00015,30]
[352061321,1738915853060,-200.7193394,0.00015,2]
[352061322,1738915853069,-3647.42,0.00015,2]
[352061323,1738915853079,-1117.16,0.00015,2]
[352061324,1738915853089,-151.0,0.00015,2]
[352061325,1738915853099,-165.463666,0.00015,2]
[352061326,1738915853108,-165.463666,0.00015,2]
[352061327,1738915853118,-151.0,0.00015,2]
[352061328,1738915853128,-264.156698,0.00015,2]
[352061329,1738915853138,-264.156698,0.00015,2]
[352061330,1738915853147,-443.65689,0.00015,2]
[352061331,1738915853157,-443.65689,0.00015,2]
[352061332,1738915853166,-158.929382,0.00015,2]
[352061333,1738915853176,-158.929382,0.00015,2]
[352061334,1738915853186,-151.0,0.00015,2]
[352061335,1738915853195,-151.0,0.00015,2]
[352061336,1738915853205,-151.0,0.00015,2]
[352061337,1738915853215,-151.0,0.00015,2]
[352061338,1738915853225,-151.0,0.00015,2]
[352061339,1738915853235,-1330.447896,0.00015,2]
[352061340,1738915853245,-151.0,0.00015,2]
[352061341,1738915853255,-151.0,0.00015,2]
[352061342,1738915853265,-151.0,0.00015,2]
[352061343,1738915853276,-151.0,0.00015,2]
[352061344,1738915853286,-500.0,0.00015,2]
[352061345,1738915853296,-500.0,0.00015,2]
[352061346,1738915853306,-500.0,0.00015,2]
[352061347,1738915853316,-409.94507316,0.00015,2]
[352061348,1738915853684,-151.0,0.00013972,2]
[352061349,1738915853694,-151.0,0.00014383,2]
[352061350,1738915853704,-151.0,0.00014794,2]
[352061351,1738915853714,-151.0,0.00014794,2]
[352061352,1738915853723,-90.05492684,0.00015,2]
[352061353,1738915853733,-500.0,0.00015,2]
[352061354,1738915853742,-475.010122,0.00015,2]
[352061355,1738915853752,-151.0,0.00015,2]
[352061356,1738915853761,-151.0,0.00015,2]
[352061357,1738915853770,-151.0,0.00015,2]
[352061358,1738915853779,-128.40916879,0.00015,2]
[352061359,1738915853791,-207.25464621,0.00015,2]
[352061360,1738915853801,-245.599451,0.00015,2]
[352061361,1738915853810,-434.0,0.00015,5]
[352061362,1738915853820,-245.599451,0.00015,2]
[352061363,1738915853830,-303.012759,0.00015,2]
[352061364,1738915853839,-303.012759,0.00015,2]
[352061365,1738915853848,-971.232207,0.00015,2]
[352061366,1738915853857,-470.213975,0.00015,2]
[352061367,1738915853867,-342.362544,0.00015,2]
[352061368,1738915853877,-470.213975,0.00015,2]
[352061369,1738915853886,-342.362544,0.00015,2]
[352061370,1738915853898,-396.818272,0.00015,2]
[352061371,1738915853908,-396.818272,0.00015,2]
[352061372,1738915853917,-152.465387,0.00015,2]
[352061373,1738915853926,-665.43233,0.00015,2]
[352061374,1738915853936,-151.0,0.00015,2]
[352061375,1738915853945,-665.43233,0.00015,2]
[352061376,1738915853954,-192.437958,0.00015,2]
[352061377,1738915853963,-192.437958,0.00015,2]
[352061378,1738915854075,-151.0,0.00015,2]
[352061379,1738915854089,-1735.16113122,0.00015,2]
[352061380,1738915854106,-1437.62322814,0.00015,2]
[352061381,1738916067366,7898.7364545,0.00012095,2]
[352061384,1738916845119,-157.909657,0.00012732,2]
[352061385,1738916845140,-536.2949459,0.00012733,2]
[352061386,1738916845162,-157.909657,0.0001274,2]
[352061387,1738916845184,-157.909657,0.00012748,2]
[352061388,1738916845205,-157.909657,0.00012756,2]
[352061389,1738916845227,-157.909657,0.00012764,2]
[352061390,1738916845253,-157.909657,0.00012772,2]
[352061391,1738916845275,-157.909657,0.0001278,2]
[352061392,1738916845299,-157.909657,0.00012788,2]
[352061393,1738916845324,-157.909657,0.00012796,2]
[352061394,1738916845347,-700.0,0.00013068,2]
[352061395,1738916845369,-3416.31544121,0.00013414,2]
[352061396,1738916845392,-491.31950927,0.00013598,2]
[352061397,1738916845415,-300.0,0.00013677,2]
[352061398,1738916845436,-6965.73580651,0.00013678,2]
[352061445,1738917031935,-300.0,0.00012999,2]
[352061447,1738917031945,-16384.0071259,0.00013,2]
[352061700,1738917042912,-441.0,0.00013,2]
[352061784,1738917964365,5778.7629223,0.00012016,2]
[352061785,1738918043148,-4981.18442763,0.00012457,2]
[352061786,1738918043170,-819.83657803,0.00012583,2]
[352061787,1738918043191,-829.8207305,0.000129,2]
[352061788,1738918043214,-571.59675395,0.000129,2]
[352061789,1738918043240,-438.77670546,0.000129,2]
[352061790,1738918043262,-300.0,0.00012998,2]
[352061791,1738918043285,-500.0,0.00012999,2]
[352061792,1738918043308,-500.0,0.00012999,2]
[352061793,1738918043330,-500.0,0.00012999,2]
[352061794,1738918043352,-500.0,0.00012999,2]
[352061795,1738918043374,-500.0,0.00012999,2]
[352061796,1738918043396,-180.787,0.00012999,2]
[352061797,1738918043419,-500.0,0.00012999,2]
[352061798,1738918043440,-500.0,0.00012999,2]
[352061799,1738918043462,-500.0,0.00012999,2]
[352061800,1738918043484,-500.0,0.00012999,2]
[352061801,1738918043509,-500.0,0.00012999,2]
[352061802,1738918043532,-310.19363117,0.00012999,2]
[352061803,1738918043553,-500.0,0.00012999,2]
[352061804,1738918043574,-500.0,0.00012999,2]
[352061805,1738918043728,-500.0,0.00012999,2]
[352061806,1738918043756,-500.0,0.00012999,2]
[352061807,1738918043780,-500.0,0.00012999,2]
[352061808,1738918043802,-500.0,0.00012999,2]
[352061809,1738918043825,-289.40366003,0.00012999,2]
[352061816,1738918159223,-401.79557328,0.00012483,2]
[352061829,1738918232162,-1802.70952778,0.00012869,2]
[352061830,1738918232172,-500.14715968,0.000129,2]
[352061831,1738918232184,-298.69805937,0.00012992,2]
[352061832,1738918232194,-300.0,0.00012998,2]
[352061833,1738918232205,-210.59633997,0.00012999,2]
[352061834,1738918232214,-387.05617321,0.00012999,2]
[352061835,1738918232224,-500.0,0.00012999,2]
[352061836,1738918232233,-500.0,0.00012999,2]
[352061837,1738918232254,-500.0,0.00012999,2]
[352061838,1738918232263,-500.0,0.00012999,2]
[352061839,1738918232273,-500.0,0.00012999,2]
[352061840,1738918232282,-500.0,0.00012999,2]
[352061841,1738918232292,-500.0,0.00012999,2]
[352061842,1738918232301,-500.0,0.00012999,2]
[352061843,1738918232311,-500.0,0.00012999,2]
[352061844,1738918232320,-500.0,0.00012999,2]
[352061845,1738918232330,-500.0,0.00012999,2]
[352061846,1738918232339,-500.0,0.00012999,2]
[352061847,1738918232515,-500.0,0.00012999,2]
[352061848,1738918232526,-500.0,0.00012999,2]
[352061849,1738918232536,-1399.44160199,0.00013,2]
[352061850,1738918232545,-208304.33675131,0.00013,2]
[352061851,1738918232554,-151.0,0.00013,2]
[352061852,1738918232564,-151.0,0.00013,2]
[352061853,1738918232573,-700.0,0.00013068,2]
[352061854,1738918232583,-151.0,0.000132,2]
[352061855,1738918232592,-151.0,0.000132,2]
[352061856,1738918232602,-354.7326672,0.00013205,2]
[352061857,1738918232611,-354.7326672,0.00013205,2]
[352061858,1738918232622,-13264.03974987,0.00013312,2]
[352061859,1738918232631,-829.82073046,0.0001339,2]
[352061860,1738918232642,-151.0,0.000134,2]
[352061861,1738918232651,-151.0,0.000134,2]
[352061862,1738918232660,-354.7326672,0.000134,2]
[352061863,1738918232670,-354.7326672,0.000134,2]
[352061864,1738918232679,-354.7326672,0.000134,2]
[352061865,1738918232688,-151.0,0.000136,2]
[352061866,1738918232698,-4998.89979556,0.000136,2]
[352061867,1738918232707,-151.0,0.000136,2]
[352061868,1738918232716,-500.14715968,0.00013614,2]
[352061869,1738918232726,-7438.69753278,0.00013659,2]
[352061870,1738918232735,-569.63641191,0.00013673,2]
[352061871,1738918232750,-318.17867757,0.00013697,2]
[352061872,1738918232761,-500.0,0.00013697,2]
[352061873,1738918232770,-500.0,0.00013697,2]
[352061874,1738918232780,-500.0,0.00013697,2]
[352061875,1738918232790,-488.35272485,0.00013697,2]
[352061876,1738918232800,-500.0,0.00013697,2]
[352061877,1738918232809,-500.0,0.00013698,2]
[352061878,1738918232820,-500.0,0.00013698,2]
[352061879,1738918232830,-503.12697328,0.00013698,2]
[352061880,1738918232840,-500.0,0.00013698,2]
[352061881,1738918232850,-500.0,0.00013698,2]
[352061882,1738918232859,-500.0,0.00013698,2]
[352061883,1738918232869,-500.0,0.00013698,2]
[352061884,1738918232879,-500.0,0.00013698,2]
[352061885,1738918232888,-222.72797491,0.00013698,2]
[352061886,1738918232898,-500.0,0.00013698,2]
[352061887,1738918232907,-500.0,0.00013698,2]
[352061888,1738918232917,-500.0,0.00013698,2]
[352061889,1738918232926,-268.18030628,0.00013698,2]
[352061890,1738918232935,-500.0,0.00013698,2]
[352061891,1738918232945,-500.0,0.00013698,2]
[352061892,1738918232955,-500.0,0.00013698,2]
[352061893,1738918232964,-500.0,0.00013698,2]
[352061894,1738918232974,-500.0,0.00013698,2]
[352061895,1738918232983,-541.63379045,0.00013698,2]
[352061896,1738918232992,-500.0,0.00013698,2]
[352061897,1738918233002,-503.18762165,0.00013698,2]
[352061898,1738918233011,-501.52015098,0.00013698,2]
[352061899,1738918233021,-506.38513446,0.00013698,2]
[352061900,1738918233031,-500.0,0.00013698,2]
[352061901,1738918233043,-500.0,0.00013698,2]
[352061902,1738918233054,-501.04840533,0.00013698,2]
[352061903,1738918233064,-500.0,0.00013698,2]
[352061904,1738918233074,-500.0,0.00013698,2]
[352061905,1738918233084,-500.0,0.00013698,2]
[352061906,1738918233094,-500.0,0.00013698,2]
[352061907,1738918233104,-466.47746863,0.00013698,2]
[352061908,1738918233115,-155.84997868,0.00013698,2]
[352061909,1738918233125,-500.0,0.00013698,2]
[352061910,1738918233135,-500.0,0.00013698,2]
[352061911,1738918233145,-500.0,0.00013698,2]
[352061912,1738918233156,-500.0,0.00013698,2]
[352061913,1738918233166,-400.44562593,0.00013698,2]
[352061914,1738918233176,-602.8,0.00013698,2]
[352061915,1738918233187,-500.0,0.00013698,2]
[352061916,1738918233197,-500.0,0.00013698,2]
[352061917,1738918233207,-500.0,0.00013698,2]
[352061918,1738918233217,-500.0,0.00013698,2]
[352061919,1738918233226,-500.0,0.00013698,2]
[352061920,1738918233235,-500.0,0.00013698,2]
[352061921,1738918233246,-500.0,0.00013698,2]
[352061922,1738918233256,-502.4606202,0.00013698,2]
[352061923,1738918233266,-203.461442,0.00013698,2]
[352061924,1738918233276,-503.08594097,0.00013698,2]
[352061925,1738918233286,-501.96749212,0.00013698,2]
[352061926,1738918233297,-208.57116198,0.00013698,2]
[352061927,1738918233307,-500.0,0.00013698,2]
[352061928,1738918233317,-533.64,0.00013698,2]
[352061929,1738918233328,-500.0,0.00013698,2]
[352061930,1738918233338,-500.0,0.00013698,2]
[352061931,1738918233349,-500.0,0.00013698,2]
[352061932,1738918233359,-500.0,0.00013698,2]
[352061933,1738918233371,-500.0,0.00013698,2]
[352061934,1738918233381,-501.93296659,0.00013698,2]
[352061935,1738918233392,-500.0,0.00013698,2]
[352061936,1738918233402,-500.0,0.00013698,2]
[352061937,1738918233412,-500.0,0.00013698,2]
[352061938,1738918233422,-500.0,0.00013698,2]
[352061939,1738918233432,-500.60587709,0.00013698,2]
[352061940,1738918233443,-500.64684637,0.00013698,2]
[352061941,1738918233453,-500.0,0.00013698,2]
[352061942,1738918233463,-525.54985248,0.00013698,2]
[352061943,1738918233473,-500.0,0.00013698,2]
[352061944,1738918233484,-579.07,0.00013698,2]
[352061945,1738918233494,-500.0,0.00013698,2]
[352061946,1738918233504,-500.0,0.00013698,2]
[352061947,1738918233514,-500.0,0.00013698,2]
[352061948,1738918233524,-500.0,0.00013698,2]
[352061949,1738918233535,-500.0,0.00013698,2]
[352061950,1738918233545,-500.0,0.00013698,2]
[352061951,1738918233555,-500.0,0.00013698,2]
[352061952,1738918233566,-361.1273516,0.00013698,2]
[352061953,1738918233582,-138.8726484,0.00013698,2]
[352061954,1738918233593,-267.3984506,0.00013698,2]
[352061955,1738918233606,-232.6015494,0.00013698,2]
[352061956,1738918233620,-500.0,0.00013698,2]
[352061957,1738918233634,-497.11613746,0.00013698,2]
[352061958,1738918233650,-500.0,0.00013698,2]
[352061959,1738918233661,-500.0,0.00013698,2]
[352061960,1738918233671,-500.0,0.00013698,2]
[352061961,1738918233681,-500.0,0.00013698,2]
[352061962,1738918233691,-500.0,0.00013698,2]
[352061963,1738918233702,-500.0,0.00013698,2]
[352061964,1738918233714,-500.0,0.00013698,2]
[352061965,1738918233725,-500.0,0.00013698,2]
[352061966,1738918233737,-500.0,0.00013698,2]
[352061967,1738918233750,-500.0,0.00013698,2]
[352061968,1738918233767,-500.0,0.00013698,2]
[352061969,1738918233779,-500.0,0.00013698,2]
[352061970,1738918233790,-500.0,0.00013698,2]
[352061971,1738918233801,-500.0,0.00013698,2]
[352061972,1738918233810,-557.48,0.00013698,2]
[352061973,1738918233821,-500.0,0.00013698,2]
[352061974,1738918233831,-584.6375172,0.00013698,2]
[352061975,1738918233841,-500.0,0.00013698,2]
[352061976,1738918233851,-502.51639516,0.00013698,2]
[352061977,1738918233862,-500.0,0.00013698,2]
[352061978,1738918233874,-500.0,0.00013698,2]
[352061979,1738918233885,-316.20214082,0.00013698,2]
[352061980,1738918233899,-500.0,0.00013698,2]
[352061981,1738918233909,-500.0,0.00013698,2]
[352061982,1738918233921,-599.83,0.00013698,2]
[352061983,1738918233931,-501.98363984,0.00013698,2]
[352061984,1738918233941,-500.0,0.00013698,2]
[352061985,1738918233951,-500.0,0.00013698,2]
[352061986,1738918233962,-406.44,0.00013698,2]
[352061987,1738918233972,-500.0,0.00013698,2]
[352061988,1738918233982,-268.49800783,0.00013698,2]
[352061989,1738918233992,-500.0,0.00013698,2]
[352061990,1738918234002,-500.0,0.00013698,2]
[352061991,1738918234012,-504.08081738,0.00013698,2]
[352061992,1738918234022,-500.0,0.00013698,2]
[352061993,1738918234032,-567.04,0.00013698,2]
[352061994,1738918234042,-500.0,0.00013698,2]
[352061995,1738918234053,-500.0,0.00013698,2]
[352061996,1738918234063,-503.34594976,0.00013698,2]
[352061997,1738918234073,-500.0,0.00013698,2]
[352061998,1738918234083,-500.0,0.00013698,2]
[352061999,1738918234093,-500.0,0.00013698,2]
[352062000,1738918234103,-500.0,0.00013698,2]
[352062001,1738918234114,-547.59,0.00013698,2]
[352062002,1738918234124,-500.0,0.00013698,2]
[352062003,1738918234134,-500.0,0.00013698,2]
[352062004,1738918234143,-194.82,0.00013698,2]
[352062005,1738918234153,-500.0,0.00013698,2]
[352062006,1738918234163,-502.725926,0.00013698,2]
[352062007,1738918234173,-500.0,0.00013698,2]
[352062008,1738918234182,-500.0,0.00013698,2]
[352062009,1738918234192,-500.0,0.00013698,2]
[352062010,1738918234202,-500.0,0.00013698,2]
[352062011,1738918234212,-500.0,0.00013698,2]
[352062012,1738918234222,-502.6445118,0.00013698,2]
[352062013,1738918234231,-500.0,0.00013698,2]
[352062014,1738918234242,-501.74331293,0.00013698,2]
[352062015,1738918234252,-343.33598837,0.00013698,2]
[352062016,1738918234263,-500.0,0.00013698,2]
[352062017,1738918234274,-500.0,0.00013698,2]
[352062018,1738918234285,-500.0,0.00013698,2]
[352062019,1738918234295,-500.0,0.00013698,2]
[352062020,1738918234305,-500.0,0.00013698,2]
[352062021,1738918234316,-500.0,0.00013698,2]
[352062022,1738918234326,-500.0,0.00013698,2]
[352062023,1738918234337,-500.0,0.00013698,2]
[352062024,1738918234347,-500.0,0.00013698,2]
[352062025,1738918234358,-500.0,0.00013698,2]
[352062026,1738918234371,-500.0,0.00013698,2]
[352062027,1738918234382,-500.0,0.00013698,2]
[352062028,1738918234393,-500.0,0.00013698,2]
[352062029,1738918234403,-500.0,0.00013698,2]
[352062030,1738918234414,-545.36265627,0.00013698,2]
[352062031,1738918234424,-500.0,0.00013698,2]
[352062032,1738918234435,-504.14358661,0.00013698,2]
[352062033,1738918234445,-500.0,0.00013698,2]
[352062034,1738918234456,-500.0,0.00013698,2]
[352062035,1738918234466,-500.0,0.00013698,2]
[352062036,1738918234484,-500.0,0.00013698,2]
[352062037,1738918234495,-576.78526845,0.00013698,2]
[352062038,1738918234505,-527.81,0.00013698,2]
[352062039,1738918234515,-500.0,0.00013698,2]
[352062040,1738918234527,-500.0,0.00013698,2]
[352062041,1738918234540,-1510.37,0.00013698,2]
[352062042,1738918234550,-500.0,0.00013698,2]
[352062043,1738918234560,-500.0,0.00013698,2]
[352062044,1738918234571,-500.0,0.00013698,2]
[352062045,1738918234581,-504.04404954,0.00013698,2]
[352062046,1738918234591,-632.23,0.00013698,2]
[352062047,1738918234601,-500.0,0.00013698,2]
[352062048,1738918234611,-500.0,0.00013698,2]
[352062049,1738918234624,-500.0,0.00013698,2]
[352062050,1738918234634,-786.9,0.00013698,2]
[352062051,1738918234645,-500.0,0.00013698,2]
[352062052,1738918234655,-500.0,0.00013698,2]
[352062053,1738918234665,-500.0,0.00013698,2]
[352062054,1738918234676,-500.0,0.00013698,2]
[352062055,1738918234686,-500.0,0.00013698,2]
[352062056,1738918234696,-500.0,0.00013698,2]
[352062057,1738918234706,-500.0,0.00013698,2]
[352062058,1738918234716,-500.0,0.00013698,2]
[352062059,1738918234726,-500.0,0.00013698,2]
[352062060,1738918234738,-500.0,0.00013698,2]
[352062061,1738918234750,-500.0,0.00013698,2]
[352062062,1738918234760,-414.75,0.00013698,2]
[352062063,1738918234771,-500.0,0.00013698,2]
[352062064,1738918234782,-155.6478779,0.00013698,2]
[352062065,1738918234791,-500.0,0.00013698,2]
[352062066,1738918234801,-500.0,0.00013698,2]
[352062067,1738918234906,-603.88,0.00013698,2]
[352062068,1738918234916,-503.15495327,0.00013698,2]
[352062069,1738918234925,-735.35,0.00013698,2]
[352062070,1738918234935,-502.28088577,0.00013698,2]
[352062071,1738918234945,-504.20802069,0.00013698,2]
[352062072,1738918234954,-500.0,0.00013698,2]
[352062073,1738918234964,-176.76,0.00013698,2]
[352062074,1738918234973,-500.0,0.00013698,2]
[352062075,1738918234983,-500.0,0.00013698,2]
[352062076,1738918234992,-500.0,0.00013698,2]
[352062077,1738918235002,-500.0,0.00013698,2]
[352062078,1738918235012,-150.1592151,0.00013698,2]
[352062079,1738918235021,-4304.02,0.00013698,2]
[352062080,1738918235031,-500.0,0.00013698,2]
[352062081,1738918235041,-500.0,0.00013698,2]
[352062082,1738918235051,-500.0,0.00013698,2]
[352062083,1738918235061,-501.36327129,0.00013698,2]
[352062084,1738918235072,-500.0,0.00013698,2]
[352062085,1738918235082,-516.35,0.00013698,2]
[352062086,1738918235091,-500.0,0.00013698,2]
[352062087,1738918235101,-500.0,0.00013698,2]
[352062088,1738918235111,-500.0,0.00013698,2]
[352062089,1738918235123,-500.0,0.00013698,2]
[352062090,1738918235132,-447.11388792,0.00013698,2]
[352062091,1738918235141,-500.0,0.00013698,2]
[352062092,1738918235151,-500.0,0.00013698,2]
[352062093,1738918235161,-500.0,0.00013698,2]
[352062094,1738918235171,-500.0,0.00013698,2]
[352062095,1738918235180,-500.0,0.00013698,2]
[352062096,1738918235190,-500.0,0.00013698,2]
[352062097,1738918235200,-582.00707082,0.00013698,2]
[352062098,1738918235209,-500.0,0.00013698,2]
[352062099,1738918235218,-500.0,0.00013698,2]
[352062100,1738918235227,-500.0,0.00013698,2]
[352062101,1738918235237,-500.0,0.00013698,2]
[352062102,1738918235246,-1043.52,0.00013698,2]
[352062103,1738918235256,-500.0,0.00013698,2]
[352062104,1738918235266,-503.27840528,0.00013698,2]
[352062105,1738918235275,-500.0,0.00013698,2]
[352062106,1738918235284,-500.0,0.00013698,2]
[352062107,1738918235294,-500.0,0.00013698,2]
[352062108,1738918235304,-500.0,0.00013698,2]
[352062109,1738918235313,-785.0,0.00013698,2]
[352062110,1738918235323,-500.0,0.00013698,2]
[352062111,1738918235332,-500.0,0.00013698,2]
[352062112,1738918235343,-258.66245147,0.00013698,2]
[352062113,1738918235352,-500.0,0.00013698,2]
[352062114,1738918235362,-501.04516685,0.00013698,2]
[352062115,1738918235372,-378.67856845,0.00013698,2]
[352062116,1738918235382,-502.42261787,0.00013698,2]
[352062117,1738918235392,-1222.5,0.00013698,2]
[352062118,1738918235401,-500.0,0.00013698,2]
[352062119,1738918235410,-500.0,0.00013698,2]
[352062120,1738918235421,-504.96767484,0.00013698,2]
[352062121,1738918235431,-504.30853412,0.00013698,2]
[352062122,1738918235441,-501.86280008,0.00013698,2]
[352062123,1738918235450,-518.38541079,0.00013698,2]
[352062124,1738918235461,-5477.48,0.00013698,2]
[352062125,1738918235470,-3231.21,0.00013698,2]
[352062126,1738918235480,-644.68,0.00013698,2]
[352062127,1738918235491,-270.94999317,0.00013698,2]
[352062128,1738918235501,-501.99218465,0.00013698,2]
[352062129,1738918235510,-502.85249426,0.00013698,2]
[352062130,1738918235520,-500.0,0.00013698,2]
[352062131,1738918235530,-500.0,0.00013698,2]
[352062132,1738918235539,-501.11471856,0.00013698,2]
[352062133,1738918235549,-500.0,0.00013698,2]
[352062134,1738918235558,-500.0,0.00013698,2]
[352062135,1738918235568,-504.15901071,0.00013698,2]
[352062136,1738918235578,-500.0,0.00013698,2]
[352062137,1738918235587,-502.17784361,0.00013698,2]
[352062138,1738918235597,-500.0,0.00013698,2]
[352062139,1738918235607,-500.0,0.00013698,2]
[352062140,1738918235618,-501.62925064,0.00013698,2]
[352062141,1738918235627,-500.89695592,0.00013698,2]
[352062142,1738918235637,-548.17,0.00013698,2]
[352062143,1738918235647,-500.0,0.00013698,2]
[352062144,1738918235657,-500.0,0.00013698,2]
[352062145,1738918235667,-500.0,0.00013698,2]
[352062146,1738918235677,-287.002871,0.00013699,2]
[352062147,1738918235686,-448.210587,0.00013699,2]
[352062148,1738918235696,-500.0,0.00013699,2]
[352062149,1738918235706,-145.59288327,0.00013699,2]
[352062150,1738918235859,-354.40711673,0.00013699,2]
[352062151,1738918235871,-102.24288327,0.00013699,2]
[352062168,1738918237889,-500.0,0.00013698,2]
[352062169,1738918237900,-500.0,0.00013698,2]
[352062170,1738918237910,-506.34203787,0.00013698,2]
[352062171,1738918237919,-500.0,0.00013698,2]
[352062172,1738918237928,-380.9575973,0.00013699,2]
[352062173,1738918237940,-16.79951943,0.00013699,2]
[352062174,1738918237950,-500.0,0.00013699,2]
[352062175,1738918237960,-500.0,0.00013699,2]
[352062176,1738918237970,-500.0,0.00013699,2]
[352062177,1738918237980,-500.0,0.00013699,2]
[352062178,1738918237990,-485.48076871,0.00013699,2]
[352062179,1738918238000,-500.0,0.00013699,2]
[352062180,1738918238010,-497.51152386,0.00013699,2]
[352062181,1738918238032,-500.0,0.00013698,2]
[352062182,1738918238041,-2.48847614,0.00013699,2]
[352062183,1738918238051,-500.0,0.00013699,2]
[352062184,1738918238061,-500.0,0.00013699,2]
[352062185,1738918238070,-500.0,0.00013699,2]
[352062186,1738918238080,-500.0,0.00013699,2]
[352062187,1738918238090,-500.0,0.00013699,2]
[352062188,1738918238100,-500.0,0.00013699,2]
[352062189,1738918238110,-500.0,0.00013699,2]
[352062190,1738918238120,-500.0,0.00013699,2]
[352062191,1738918238130,-500.0,0.00013699,2]
[352062192,1738918238139,-500.0,0.00013699,2]
[352062193,1738918238150,-309.98947937,0.00013699,2]
[352062194,1738918238160,-500.0,0.00013699,2]
[352062195,1738918238170,-500.0,0.00013699,2]
[352062196,1738918238180,-500.0,0.00013699,2]
[352062198,1738918238190,-500.0,0.00013699,2]
[352062200,1738918238200,-500.0,0.00013699,2]
[352062202,1738918238210,-500.0,0.00013699,2]
[352062204,1738918238219,-500.0,0.00013699,2]
[352062206,1738918238228,-500.0,0.00013699,2]
[352062208,1738918238237,-500.0,0.00013699,2]
[352062209,1738918238247,-1000.0,0.000138,2]
[352062210,1738918238256,-1000.0,0.000138,3]
[352062211,1738918238266,-1000.0,0.000138,4]
[352062212,1738918238275,-151.0,0.000138,2]
[352062213,1738918238284,-3048.12492005,0.000138,2]
[352062214,1738918238294,-151.0,0.000138,2]
[352062215,1738918238303,-500.0,0.00013834,2]
[352062216,1738918238313,-500.0,0.00013834,2]
[352062217,1738918238324,-160.0,0.00013834,2]
[352062218,1738918238334,-500.0,0.00013835,2]
[352062219,1738918238344,-500.0,0.00013835,2]